[Event "Titled Tuesday Blitz May 16 Late 2023"]
[White "Khandelwal, Ankush"]
[Black "Fernandez Guillen, Ernesto J."]
[WhiteFideId "413470"]
[BlackFideId "3512428"]
[WhiteElo "2263"]
[BlackElo "2429"]
[Result "1-0"]
[Round "03"]
[TimeControl "180+2"]
[Date "2023.05.16"]
[WhiteClock "0:00:15"]
[BlackClock "0:00:00"]

1. e4 {[%clk 0:02:57]}  e5 {[%clk 0:02:32]} 2. Nf3 {[%clk 0:02:56]}  Nc6 {[%clk 0:02:08]} 3. Bc4 {[%clk 0:02:55]}  g6 {[%clk 0:02:07]} 4. c3 {[%clk 0:02:52]}  Bg7 {[%clk 0:02:02]} 5. d4 {[%clk 0:02:52]}  d6 {[%clk 0:01:56]} 6. O-O {[%clk 0:02:52]}  Nge7 {[%clk 0:01:46]} 7. dxe5 {[%clk 0:02:36]}  dxe5 {[%clk 0:01:40]} 8. Nbd2 {[%clk 0:02:24]}  O-O {[%clk 0:01:39]} 9. b4 {[%clk 0:02:21]}  a6 {[%clk 0:01:39]} 10. Qb3 {[%clk 0:02:15]}  b5 {[%clk 0:01:34]} 11. Be2 {[%clk 0:01:45]}  Bb7 {[%clk 0:01:31]} 12. a4 {[%clk 0:01:44]}  bxa4 {[%clk 0:01:26]} 13. Rxa4 {[%clk 0:01:45]}  Nc8 {[%clk 0:01:25]} 14. Nc4 {[%clk 0:01:37]}  Nb6 {[%clk 0:01:19]} 15. Ra2 {[%clk 0:01:33]}  Nxc4 {[%clk 0:00:53]} 16. Bxc4 {[%clk 0:01:34]}  a5 {[%clk 0:00:54]} 17. b5 {[%clk 0:01:30]}  a4 {[%clk 0:00:54]} 18. Rxa4 {[%clk 0:01:09]}  Na5 {[%clk 0:00:53]} 19. Qb4 {[%clk 0:01:09]}  Nxc4 {[%clk 0:00:51]} 20. Qxc4 {[%clk 0:01:10]}  Rxa4 {[%clk 0:00:50]} 21. Qxa4 {[%clk 0:01:11]}  Qd3 {[%clk 0:00:50]} 22. Qa5 {[%clk 0:00:50]}  Bxe4 {[%clk 0:00:44]} 23. Nd2 {[%clk 0:00:40]}  Ba8 {[%clk 0:00:37]} 24. Qxc7 {[%clk 0:00:39]}  Qxb5 {[%clk 0:00:36]} 25. f3 {[%clk 0:00:36]}  Qd3 {[%clk 0:00:23]} 26. Ne4 {[%clk 0:00:28]}  f5 {[%clk 0:00:15]} 27. Ng5 {[%clk 0:00:23]}  e4 {[%clk 0:00:06]} 28. Ba3 {[%clk 0:00:18]}  Rc8 {[%clk 0:00:00]} 29. Qxc8+ {[%clk 0:00:15]} 1-0


[Site "https://www.chess.com"]

[Event "Titled Tuesday Blitz May 16 Late 2023"]
[White "Trost, Edvin"]
[Black "Musovic, Armin"]
[WhiteFideId "1729519"]
[BlackFideId "939935"]
[WhiteElo "2368"]
[BlackElo "2322"]
[Result "0-1"]
[Round "03"]
[TimeControl "180+2"]
[Date "2023.05.16"]
[WhiteClock "0:00:00"]
[BlackClock "0:00:06"]

1. e4 {[%clk 0:02:57]}  c6 {[%clk 0:03:00]} 2. Nf3 {[%clk 0:02:50]}  d5 {[%clk 0:03:00]} 3. e5 {[%clk 0:02:51]}  c5 {[%clk 0:03:00]} 4. d3 {[%clk 0:02:43]}  Nc6 {[%clk 0:03:00]} 5. Qe2 {[%clk 0:02:42]}  Bg4 {[%clk 0:02:58]} 6. Bf4 {[%clk 0:02:41]}  e6 {[%clk 0:02:33]} 7. c3 {[%clk 0:02:39]}  Nge7 {[%clk 0:02:32]} 8. Nbd2 {[%clk 0:02:27]}  Ng6 {[%clk 0:02:26]} 9. Bg3 {[%clk 0:02:27]}  Qb6 {[%clk 0:02:12]} 10. Rb1 {[%clk 0:02:22]}  h5 {[%clk 0:02:07]} 11. h3 {[%clk 0:02:21]}  h4 {[%clk 0:02:07]} 12. Bh2 {[%clk 0:02:18]}  Bf5 {[%clk 0:01:59]} 13. Qe3 {[%clk 0:02:04]}  c4 {[%clk 0:01:50]} 14. Qxb6 {[%clk 0:01:58]}  axb6 {[%clk 0:01:51]} 15. a3 {[%clk 0:01:59]}  cxd3 {[%clk 0:01:40]} 16. Rd1 {[%clk 0:01:40]}  Na5 {[%clk 0:01:33]} 17. Nd4 {[%clk 0:01:11]}  Nc4 {[%clk 0:01:33]} 18. Nxf5 {[%clk 0:01:11]}  exf5 {[%clk 0:01:34]} 19. Bxd3 {[%clk 0:01:00]}  Nxb2 {[%clk 0:01:33]} 20. Bb5+ {[%clk 0:00:42]}  Kd8 {[%clk 0:01:25]} 21. Rb1 {[%clk 0:00:42]}  Bxa3 {[%clk 0:01:25]} 22. O-O {[%clk 0:00:41]}  Ra5 {[%clk 0:00:48]} 23. Be2 {[%clk 0:00:39]}  Na4 {[%clk 0:00:48]} 24. Rb3 {[%clk 0:00:37]}  Bc5 {[%clk 0:00:46]} 25. Nf3 {[%clk 0:00:34]}  Ke7 {[%clk 0:00:44]} 26. Rd1 {[%clk 0:00:32]}  Rd8 {[%clk 0:00:44]} 27. Bd3 {[%clk 0:00:32]}  d4 {[%clk 0:00:26]} 28. c4 {[%clk 0:00:21]}  Nc3 {[%clk 0:00:25]} 29. Re1 {[%clk 0:00:22]}  Ne4 {[%clk 0:00:20]} 30. g4 {[%clk 0:00:03]}  hxg3 {[%clk 0:00:19]} 31. fxg3 {[%clk 0:00:03]}  Rda8 {[%clk 0:00:17]} 32. g4 {[%clk 0:00:04]}  Ra3 {[%clk 0:00:12]} 33. Rxa3 {[%clk 0:00:02]}  Rxa3 {[%clk 0:00:13]} 34. Rd1 {[%clk 0:00:01]}  Nc3 {[%clk 0:00:13]} 35. Rd2 {[%clk 0:00:02]}  fxg4 {[%clk 0:00:13]} 36. hxg4 {[%clk 0:00:02]}  Ra1+ {[%clk 0:00:14]} 37. Kg2 {[%clk 0:00:03]}  Bb4 {[%clk 0:00:14]} 38. Rb2 {[%clk 0:00:02]}  Ba5 {[%clk 0:00:13]} 39. Rf2 {[%clk 0:00:02]}  Nd1 {[%clk 0:00:13]} 40. Re2 {[%clk 0:00:02]}  Ne3+ {[%clk 0:00:14]} 41. Kh3 {[%clk 0:00:02]}  Rh1 {[%clk 0:00:12]} 42. Bxg6 {[%clk 0:00:03]}  fxg6 {[%clk 0:00:12]} 43. Nxd4 {[%clk 0:00:03]}  Nxc4 {[%clk 0:00:09]} 44. e6 {[%clk 0:00:04]}  Bc3 {[%clk 0:00:06]} 45. Nb5 {[%clk 0:00:00]}  Be5 {[%clk 0:00:06]} 0-1


[Site "https://www.chess.com"]

[Event "Titled Tuesday Blitz May 16 Late 2023"]
[White "Al-Tarboush, Ward"]
[Black "Baskakov, Egor"]
[WhiteFideId "7601450"]
[BlackFideId "24197866"]
[WhiteElo "2265"]
[BlackElo "2225"]
[Result "1-0"]
[Round "03"]
[TimeControl "180+2"]
[Date "2023.05.16"]
[WhiteClock "0:00:11"]
[BlackClock "0:00:12"]

1. Nc3 {[%clk 0:03:00]}  c5 {[%clk 0:02:59]} 2. e4 {[%clk 0:03:01]}  Nc6 {[%clk 0:02:59]} 3. Nf3 {[%clk 0:03:01]}  e5 {[%clk 0:02:59]} 4. Bc4 {[%clk 0:03:01]}  d6 {[%clk 0:02:59]} 5. O-O {[%clk 0:03:00]}  h6 {[%clk 0:02:59]} 6. Nd5 {[%clk 0:03:01]}  Nf6 {[%clk 0:02:59]} 7. Re1 {[%clk 0:02:56]}  g6 {[%clk 0:02:58]} 8. c3 {[%clk 0:02:55]}  Bg7 {[%clk 0:02:56]} 9. d4 {[%clk 0:02:55]}  cxd4 {[%clk 0:02:56]} 10. cxd4 {[%clk 0:02:55]}  O-O {[%clk 0:02:56]} 11. Nxf6+ {[%clk 0:02:45]}  Qxf6 {[%clk 0:02:54]} 12. d5 {[%clk 0:02:44]}  Nb8 {[%clk 0:02:45]} 13. Be3 {[%clk 0:02:40]}  Kh7 {[%clk 0:02:44]} 14. Rc1 {[%clk 0:02:37]}  Qe7 {[%clk 0:02:38]} 15. Bd3 {[%clk 0:02:34]}  f5 {[%clk 0:02:37]} 16. Qc2 {[%clk 0:02:29]}  f4 {[%clk 0:02:34]} 17. Bd2 {[%clk 0:02:29]}  g5 {[%clk 0:02:23]} 18. Qc7 {[%clk 0:02:28]}  Nd7 {[%clk 0:02:19]} 19. Bb4 {[%clk 0:02:27]}  Rf6 {[%clk 0:02:19]} 20. h3 {[%clk 0:02:23]}  Qf8 {[%clk 0:02:13]} 21. Nh2 {[%clk 0:02:18]}  b6 {[%clk 0:02:06]} 22. Ng4 {[%clk 0:02:13]}  Rg6 {[%clk 0:02:07]} 23. Bb5 {[%clk 0:02:02]}  Nc5 {[%clk 0:02:06]} 24. Bxc5 {[%clk 0:02:00]}  bxc5 {[%clk 0:02:04]} 25. Bc6 {[%clk 0:02:00]}  Bxg4 {[%clk 0:02:03]} 26. Bxa8 {[%clk 0:01:55]}  Bh5 {[%clk 0:02:00]} 27. Bc6 {[%clk 0:01:50]}  g4 {[%clk 0:02:00]} 28. Bd7 {[%clk 0:01:45]}  f3 {[%clk 0:01:49]} 29. Bf5 {[%clk 0:01:41]}  fxg2 {[%clk 0:01:50]} 30. Bxg6+ {[%clk 0:01:19]}  Bxg6 {[%clk 0:01:19]} 31. hxg4 {[%clk 0:01:19]}  Qf6 {[%clk 0:01:18]} 32. Kxg2 {[%clk 0:01:07]}  Qf4 {[%clk 0:01:18]} 33. f3 {[%clk 0:00:52]}  Qd2+ {[%clk 0:01:09]} 34. Kg3 {[%clk 0:00:53]}  Qf4+ {[%clk 0:01:08]} 35. Kg2 {[%clk 0:00:53]}  Qd2+ {[%clk 0:01:08]} 36. Kg1 {[%clk 0:00:53]}  Qd4+ {[%clk 0:01:05]} 37. Kh1 {[%clk 0:00:46]}  Qf2 {[%clk 0:01:01]} 38. Rf1 {[%clk 0:00:43]}  Qg3 {[%clk 0:00:32]} 39. Rc2 {[%clk 0:00:39]}  h5 {[%clk 0:00:28]} 40. Rh2 {[%clk 0:00:34]}  Kh6 {[%clk 0:00:25]} 41. gxh5 {[%clk 0:00:20]}  Bxh5 {[%clk 0:00:22]} 42. Qxd6+ {[%clk 0:00:20]}  Kg5 {[%clk 0:00:12]} 43. Rg2 {[%clk 0:00:11]} 1-0


[Site "https://www.chess.com"]

[Event "Titled Tuesday Blitz May 16 Late 2023"]
[White "Kim, Sergey"]
[Black "Bazeev, German"]
[WhiteFideId "13700570"]
[BlackFideId "24119350"]
[WhiteElo "2610"]
[BlackElo "2466"]
[Result "0-1"]
[Round "03"]
[TimeControl "180+2"]
[Date "2023.05.16"]
[WhiteClock "0:00:22"]
[BlackClock "0:00:52"]

1. d4 {[%clk 0:03:00]}  Nf6 {[%clk 0:02:30]} 2. c4 {[%clk 0:03:00]}  e6 {[%clk 0:02:27]} 3. Nc3 {[%clk 0:03:00]}  Bb4 {[%clk 0:02:26]} 4. Qc2 {[%clk 0:03:00]}  d5 {[%clk 0:02:25]} 5. a3 {[%clk 0:03:01]}  Be7 {[%clk 0:02:11]} 6. Nf3 {[%clk 0:03:00]}  O-O {[%clk 0:02:09]} 7. Bf4 {[%clk 0:02:59]}  a6 {[%clk 0:02:03]} 8. e3 {[%clk 0:02:58]}  Nbd7 {[%clk 0:02:03]} 9. c5 {[%clk 0:02:55]}  Nh5 {[%clk 0:01:55]} 10. Bg3 {[%clk 0:02:40]}  c6 {[%clk 0:01:54]} 11. Bd3 {[%clk 0:02:36]}  f5 {[%clk 0:01:54]} 12. Be5 {[%clk 0:02:36]}  Nxe5 {[%clk 0:01:44]} 13. Nxe5 {[%clk 0:02:35]}  Nf6 {[%clk 0:01:44]} 14. f4 {[%clk 0:02:33]}  Nd7 {[%clk 0:01:44]} 15. Nf3 {[%clk 0:02:29]}  g5 {[%clk 0:01:40]} 16. h3 {[%clk 0:02:19]}  gxf4 {[%clk 0:01:37]} 17. exf4 {[%clk 0:02:18]}  Nf6 {[%clk 0:01:36]} 18. Ne5 {[%clk 0:02:11]}  Ne4 {[%clk 0:01:36]} 19. O-O-O {[%clk 0:02:03]}  Bf6 {[%clk 0:01:35]} 20. g4 {[%clk 0:02:02]}  Bxe5 {[%clk 0:01:34]} 21. fxe5 {[%clk 0:02:01]}  Qh4 {[%clk 0:01:19]} 22. gxf5 {[%clk 0:01:54]}  exf5 {[%clk 0:01:20]} 23. Rdg1+ {[%clk 0:01:39]}  Kh8 {[%clk 0:01:19]} 24. Qg2 {[%clk 0:01:19]}  Qh6+ {[%clk 0:01:19]} 25. Kc2 {[%clk 0:01:19]}  Be6 {[%clk 0:01:19]} 26. Bxe4 {[%clk 0:00:56]}  dxe4 {[%clk 0:01:14]} 27. Qg5 {[%clk 0:00:48]}  Qxg5 {[%clk 0:01:05]} 28. Rxg5 {[%clk 0:00:48]}  e3 {[%clk 0:01:06]} 29. Kd3 {[%clk 0:00:39]}  f4 {[%clk 0:01:04]} 30. Ne4 {[%clk 0:00:38]}  Bf5 {[%clk 0:00:57]} 31. Rf1 {[%clk 0:00:31]}  Bxe4+ {[%clk 0:00:52]} 32. Kxe4 {[%clk 0:00:32]}  e2 {[%clk 0:00:52]} 33. Re1 {[%clk 0:00:22]}  f3 {[%clk 0:00:52]} 0-1


[Site "https://www.chess.com"]

[Event "Titled Tuesday Blitz May 16 Late 2023"]
[White "Kushko, Dmitriy"]
[Black "Erzhanov, Arman"]
[WhiteFideId "14162261"]
[BlackFideId "4138821"]
[WhiteElo "2230"]
[BlackElo "2138"]
[Result "1-0"]
[Round "03"]
[TimeControl "180+2"]
[Date "2023.05.16"]
[WhiteClock "0:00:43"]
[BlackClock "0:01:14"]

1. d4 {[%clk 0:03:00]}  d6 {[%clk 0:02:59]} 2. e4 {[%clk 0:02:59]}  Nf6 {[%clk 0:02:59]} 3. Bd3 {[%clk 0:02:59]}  e5 {[%clk 0:02:58]} 4. Nf3 {[%clk 0:02:58]}  Nbd7 {[%clk 0:02:57]} 5. c3 {[%clk 0:02:56]}  Be7 {[%clk 0:02:57]} 6. O-O {[%clk 0:02:56]}  O-O {[%clk 0:02:57]} 7. Re1 {[%clk 0:02:57]}  Re8 {[%clk 0:02:57]} 8. Nbd2 {[%clk 0:02:57]}  Bf8 {[%clk 0:02:57]} 9. Nf1 {[%clk 0:02:56]}  c6 {[%clk 0:02:57]} 10. Ng3 {[%clk 0:02:55]}  g6 {[%clk 0:02:57]} 11. Bg5 {[%clk 0:02:52]}  h6 {[%clk 0:02:57]} 12. Bd2 {[%clk 0:02:52]}  Bg7 {[%clk 0:02:56]} 13. a4 {[%clk 0:02:51]}  b6 {[%clk 0:02:55]} 14. b4 {[%clk 0:02:21]}  Bb7 {[%clk 0:02:54]} 15. a5 {[%clk 0:02:20]}  d5 {[%clk 0:02:39]} 16. dxe5 {[%clk 0:01:51]}  Nxe5 {[%clk 0:02:38]} 17. Nxe5 {[%clk 0:01:50]}  Rxe5 {[%clk 0:02:39]} 18. f4 {[%clk 0:01:43]}  Re8 {[%clk 0:02:34]} 19. e5 {[%clk 0:01:42]}  Nd7 {[%clk 0:02:32]} 20. e6 {[%clk 0:01:28]}  Rxe6 {[%clk 0:02:31]} 21. Rxe6 {[%clk 0:01:28]}  fxe6 {[%clk 0:02:32]} 22. Bxg6 {[%clk 0:01:23]}  Nf8 {[%clk 0:02:30]} 23. Bd3 {[%clk 0:01:17]}  c5 {[%clk 0:02:29]} 24. Qg4 {[%clk 0:01:00]}  cxb4 {[%clk 0:02:04]} 25. f5 {[%clk 0:00:54]}  bxc3 {[%clk 0:01:52]} 26. Nh5 {[%clk 0:00:48]}  Qe7 {[%clk 0:01:38]} 27. f6 {[%clk 0:00:46]}  Qf7 {[%clk 0:01:29]} 28. Bxh6 {[%clk 0:00:46]}  c2 {[%clk 0:01:21]} 29. Bxg7 {[%clk 0:00:45]}  Rc8 {[%clk 0:01:17]} 30. Rc1 {[%clk 0:00:44]}  Rc3 {[%clk 0:01:16]} 31. Bh6+ {[%clk 0:00:41]}  Kh8 {[%clk 0:01:15]} 32. Qg7+ {[%clk 0:00:41]}  Qxg7 {[%clk 0:01:13]} 33. fxg7+ {[%clk 0:00:42]}  Kg8 {[%clk 0:01:14]} 34. gxf8=Q# {[%clk 0:00:43]} 1-0


[Site "https://www.chess.com"]

[Event "Titled Tuesday Blitz May 16 Late 2023"]
[White "De La Colina, Nicolas"]
[Black "Kostiukov, Alexandr"]
[WhiteFideId "30946921"]
[BlackFideId "14108100"]
[WhiteElo "2046"]
[BlackElo "2202"]
[Result "1-0"]
[Round "03"]
[TimeControl "180+2"]
[Date "2023.05.16"]
[WhiteClock "0:00:53"]
[BlackClock "0:00:00"]

1. e4 {[%clk 0:03:00]}  c5 {[%clk 0:02:56]} 2. Nf3 {[%clk 0:02:59]}  g6 {[%clk 0:02:52]} 3. Bc4 {[%clk 0:02:54]}  Bg7 {[%clk 0:02:51]} 4. c3 {[%clk 0:02:52]}  e6 {[%clk 0:02:50]} 5. d4 {[%clk 0:02:50]}  cxd4 {[%clk 0:02:50]} 6. Nxd4 {[%clk 0:02:49]}  d5 {[%clk 0:02:51]} 7. exd5 {[%clk 0:02:49]}  exd5 {[%clk 0:02:51]} 8. Bb5+ {[%clk 0:02:48]}  Bd7 {[%clk 0:02:44]} 9. O-O {[%clk 0:02:49]}  Ne7 {[%clk 0:02:26]} 10. Re1 {[%clk 0:02:42]}  O-O {[%clk 0:02:25]} 11. Bxd7 {[%clk 0:02:40]}  Qxd7 {[%clk 0:02:23]} 12. Bg5 {[%clk 0:02:27]}  Nbc6 {[%clk 0:02:22]} 13. Nb3 {[%clk 0:02:24]}  h6 {[%clk 0:01:45]} 14. Bf4 {[%clk 0:02:17]}  Rad8 {[%clk 0:01:37]} 15. Be3 {[%clk 0:02:07]}  Nf5 {[%clk 0:01:31]} 16. Bc5 {[%clk 0:02:06]}  Rfe8 {[%clk 0:01:31]} 17. Rxe8+ {[%clk 0:02:04]}  Qxe8 {[%clk 0:01:23]} 18. Na3 {[%clk 0:02:00]}  b6 {[%clk 0:01:21]} 19. Bd4 {[%clk 0:01:54]}  Ncxd4 {[%clk 0:01:21]} 20. Nxd4 {[%clk 0:01:55]}  Nxd4 {[%clk 0:01:14]} 21. cxd4 {[%clk 0:01:56]}  Qe4 {[%clk 0:01:14]} 22. Nc2 {[%clk 0:01:12]}  Rc8 {[%clk 0:01:10]} 23. Nb4 {[%clk 0:01:12]}  Bxd4 {[%clk 0:01:03]} 24. Nd3 {[%clk 0:01:11]}  Bf6 {[%clk 0:00:52]} 25. h3 {[%clk 0:01:08]}  Kg7 {[%clk 0:00:51]} 26. Qb3 {[%clk 0:01:07]}  Qc4 {[%clk 0:00:50]} 27. Qa3 {[%clk 0:00:59]}  Qd4 {[%clk 0:00:24]} 28. Rd1 {[%clk 0:00:54]}  a5 {[%clk 0:00:17]} 29. Qb3 {[%clk 0:00:55]}  Qc4 {[%clk 0:00:16]} 30. Qxb6 {[%clk 0:00:54]}  Qc2 {[%clk 0:00:15]} 31. Rc1 {[%clk 0:00:51]}  Qxd3 {[%clk 0:00:09]} 32. Rxc8 {[%clk 0:00:52]}  Qd1+ {[%clk 0:00:07]} 33. Kh2 {[%clk 0:00:53]}  Be5+ {[%clk 0:00:00]} 34. g3 {[%clk 0:00:53]} 1-0


[Site "https://www.chess.com"]

[Event "Titled Tuesday Blitz May 16 Late 2023"]
[White "WindWhistler11"]
[Black "Zhigalko, Sergei"]
[BlackFideId "13502956"]
[WhiteElo "2512"]
[BlackElo "2626"]
[Result "0-1"]
[Round "03"]
[TimeControl "180+2"]
[Date "2023.05.16"]
[WhiteClock "0:00:13"]
[BlackClock "0:00:07"]

1. Nf3 {[%clk 0:02:59]}  d5 {[%clk 0:02:59]} 2. c4 {[%clk 0:02:59]}  d4 {[%clk 0:02:59]} 3. e3 {[%clk 0:02:57]}  Nc6 {[%clk 0:02:59]} 4. a3 {[%clk 0:02:49]}  e5 {[%clk 0:02:57]} 5. d3 {[%clk 0:02:44]}  a5 {[%clk 0:02:56]} 6. exd4 {[%clk 0:02:37]}  exd4 {[%clk 0:02:55]} 7. Be2 {[%clk 0:02:32]}  Nf6 {[%clk 0:02:50]} 8. O-O {[%clk 0:02:33]}  Be7 {[%clk 0:02:44]} 9. Re1 {[%clk 0:02:33]}  O-O {[%clk 0:02:44]} 10. Nbd2 {[%clk 0:02:34]}  Bf5 {[%clk 0:02:36]} 11. Nf1 {[%clk 0:02:34]}  h6 {[%clk 0:02:36]} 12. Ng3 {[%clk 0:02:34]}  Bh7 {[%clk 0:02:35]} 13. Bf1 {[%clk 0:02:33]}  Nd7 {[%clk 0:02:21]} 14. Nd2 {[%clk 0:02:01]}  Re8 {[%clk 0:02:17]} 15. Nde4 {[%clk 0:01:58]}  a4 {[%clk 0:02:03]} 16. Rb1 {[%clk 0:01:55]}  f5 {[%clk 0:01:56]} 17. Nd2 {[%clk 0:01:50]}  Nc5 {[%clk 0:01:56]} 18. Nf3 {[%clk 0:01:31]}  Bd6 {[%clk 0:01:51]} 19. Rxe8+ {[%clk 0:01:25]}  Qxe8 {[%clk 0:01:52]} 20. Bd2 {[%clk 0:01:18]}  Nb3 {[%clk 0:01:48]} 21. Qc2 {[%clk 0:01:14]}  Qd7 {[%clk 0:01:41]} 22. Re1 {[%clk 0:01:10]}  Re8 {[%clk 0:01:33]} 23. Qd1 {[%clk 0:00:54]}  Nb8 {[%clk 0:00:55]} 24. Bb4 {[%clk 0:00:47]}  c5 {[%clk 0:00:51]} 25. Bd2 {[%clk 0:00:47]}  Nc6 {[%clk 0:00:50]} 26. Nh5 {[%clk 0:00:46]}  Qf7 {[%clk 0:00:40]} 27. Nf4 {[%clk 0:00:39]}  Rxe1 {[%clk 0:00:18]} 28. Qxe1 {[%clk 0:00:38]}  Ne7 {[%clk 0:00:18]} 29. Ne5 {[%clk 0:00:33]}  Bxe5 {[%clk 0:00:13]} 30. Qxe5 {[%clk 0:00:27]}  Nxd2 {[%clk 0:00:13]} 31. Qxc5 {[%clk 0:00:24]}  Nc6 {[%clk 0:00:12]} 32. Be2 {[%clk 0:00:18]}  g5 {[%clk 0:00:06]} 33. Nd5 {[%clk 0:00:15]}  Qe6 {[%clk 0:00:06]} 34. Nf6+ {[%clk 0:00:04]}  Qxf6 {[%clk 0:00:04]} 35. Qd5+ {[%clk 0:00:04]}  Qf7 {[%clk 0:00:04]} 36. Qd6 {[%clk 0:00:03]}  Qe7 {[%clk 0:00:04]} 37. Qxe7 {[%clk 0:00:02]}  Nxe7 {[%clk 0:00:04]} 38. Bd1 {[%clk 0:00:03]}  Nb3 {[%clk 0:00:03]} 39. Bxb3 {[%clk 0:00:03]}  axb3 {[%clk 0:00:03]} 40. Kf1 {[%clk 0:00:04]}  f4 {[%clk 0:00:03]} 41. Ke2 {[%clk 0:00:04]}  b6 {[%clk 0:00:04]} 42. g3 {[%clk 0:00:05]}  Kf7 {[%clk 0:00:03]} 43. gxf4 {[%clk 0:00:06]}  gxf4 {[%clk 0:00:04]} 44. a4 {[%clk 0:00:05]}  Nc6 {[%clk 0:00:04]} 45. Kd2 {[%clk 0:00:05]}  Nb4 {[%clk 0:00:04]} 46. Ke2 {[%clk 0:00:05]}  Bxd3+ {[%clk 0:00:04]} 47. Kf3 {[%clk 0:00:06]}  Bxc4 {[%clk 0:00:04]} 48. Kxf4 {[%clk 0:00:07]}  Ke6 {[%clk 0:00:04]} 49. Ke4 {[%clk 0:00:07]}  d3 {[%clk 0:00:04]} 50. Ke3 {[%clk 0:00:08]}  Nc2+ {[%clk 0:00:04]} 51. Kd2 {[%clk 0:00:09]}  Kf5 {[%clk 0:00:04]} 52. a5 {[%clk 0:00:08]}  bxa5 {[%clk 0:00:04]} 53. Kc3 {[%clk 0:00:09]}  a4 {[%clk 0:00:05]} 54. Kxc4 {[%clk 0:00:09]}  d2 {[%clk 0:00:05]} 55. Kb5 {[%clk 0:00:10]}  d1=Q {[%clk 0:00:06]} 56. Kxa4 {[%clk 0:00:10]}  Qd4+ {[%clk 0:00:06]} 57. Kxb3 {[%clk 0:00:11]}  Ne1 {[%clk 0:00:06]} 58. Ka2 {[%clk 0:00:12]}  Qd3 {[%clk 0:00:07]} 59. f3 {[%clk 0:00:12]}  Nc2 {[%clk 0:00:06]} 60. h4 {[%clk 0:00:13]}  Nb4+ {[%clk 0:00:07]} 61. Ka1 {[%clk 0:00:13]}  Qf1# {[%clk 0:00:07]} 0-1


[Site "https://www.chess.com"]

[Event "Titled Tuesday Blitz May 16 Late 2023"]
[White "Kramnik, Vladimir"]
[Black "SereneSalmon"]
[WhiteFideId "4101588"]
[WhiteElo "2703"]
[BlackElo "2501"]
[Result "1-0"]
[Round "03"]
[TimeControl "180+2"]
[Date "2023.05.16"]
[WhiteClock "0:00:45"]
[BlackClock "0:00:00"]

1. e4 {[%clk 0:03:00]}  e6 {[%clk 0:03:00]} 2. d4 {[%clk 0:02:59]}  d5 {[%clk 0:03:01]} 3. exd5 {[%clk 0:02:59]}  exd5 {[%clk 0:03:01]} 4. Nf3 {[%clk 0:02:59]}  Bd6 {[%clk 0:03:01]} 5. c4 {[%clk 0:02:58]}  Nf6 {[%clk 0:03:01]} 6. Nc3 {[%clk 0:02:58]}  O-O {[%clk 0:02:59]} 7. cxd5 {[%clk 0:02:53]}  Nbd7 {[%clk 0:02:57]} 8. Bg5 {[%clk 0:02:43]}  h6 {[%clk 0:02:49]} 9. Bh4 {[%clk 0:02:42]}  Re8+ {[%clk 0:02:40]} 10. Be2 {[%clk 0:02:42]}  Nb6 {[%clk 0:02:40]} 11. O-O {[%clk 0:02:37]}  Bf8 {[%clk 0:02:31]} 12. Re1 {[%clk 0:02:32]}  Bf5 {[%clk 0:02:25]} 13. Qb3 {[%clk 0:02:29]}  g5 {[%clk 0:02:10]} 14. Bg3 {[%clk 0:02:28]}  Nfxd5 {[%clk 0:02:09]} 15. Ne5 {[%clk 0:02:10]}  Be6 {[%clk 0:02:02]} 16. Qc2 {[%clk 0:02:05]}  Nb4 {[%clk 0:01:34]} 17. Qd1 {[%clk 0:02:05]}  Bg7 {[%clk 0:01:18]} 18. Bf3 {[%clk 0:01:58]}  N4d5 {[%clk 0:01:16]} 19. h3 {[%clk 0:01:45]}  c6 {[%clk 0:01:14]} 20. Be4 {[%clk 0:01:40]}  Nxc3 {[%clk 0:01:02]} 21. bxc3 {[%clk 0:01:39]}  Nd7 {[%clk 0:00:49]} 22. Bc2 {[%clk 0:01:35]}  Nxe5 {[%clk 0:00:42]} 23. Bxe5 {[%clk 0:01:35]}  Qd7 {[%clk 0:00:25]} 24. Qd3 {[%clk 0:01:32]}  f5 {[%clk 0:00:25]} 25. Bxg7 {[%clk 0:01:28]}  Kxg7 {[%clk 0:00:25]} 26. Re5 {[%clk 0:01:26]}  Rf8 {[%clk 0:00:23]} 27. g4 {[%clk 0:01:13]}  Rae8 {[%clk 0:00:15]} 28. gxf5 {[%clk 0:01:13]}  Bg8 {[%clk 0:00:16]} 29. Rae1 {[%clk 0:01:03]}  Rxe5 {[%clk 0:00:08]} 30. dxe5 {[%clk 0:00:56]}  Qxd3 {[%clk 0:00:06]} 31. f6+ {[%clk 0:00:52]}  Kh8 {[%clk 0:00:02]} 32. Bxd3 {[%clk 0:00:52]}  Bxa2 {[%clk 0:00:01]} 33. c4 {[%clk 0:00:45]}  Bb3 {[%clk 0:00:00]} 34. e6 {[%clk 0:00:45]} 1-0


[Site "https://www.chess.com"]